[Event "Titled Tuesday Blitz April 25 Early 2023"]
[White "Ljukin, Sergei"]
[Black "Gutkin, Ilya"]
[WhiteFideId "14102200"]
[BlackFideId "16203470"]
[WhiteElo "2312"]
[BlackElo "2265"]
[Result "0-1"]
[Round "10"]
[TimeControl "180+2"]
[Date "2023.04.25"]
[WhiteClock "0:00:03"]
[BlackClock "0:01:00"]

1. e4 {[%clk 0:02:56]}  e5 {[%clk 0:02:59]} 2. Nf3 {[%clk 0:02:56]}  Nc6 {[%clk 0:03:00]} 3. Bb5 {[%clk 0:02:56]}  Nf6 {[%clk 0:03:00]} 4. Qe2 {[%clk 0:02:56]}  d6 {[%clk 0:02:53]} 5. c3 {[%clk 0:02:56]}  Bg4 {[%clk 0:02:50]} 6. h3 {[%clk 0:02:55]}  Bh5 {[%clk 0:02:50]} 7. g4 {[%clk 0:02:55]}  Bg6 {[%clk 0:02:51]} 8. d3 {[%clk 0:02:55]}  Be7 {[%clk 0:02:50]} 9. Be3 {[%clk 0:02:55]}  a6 {[%clk 0:02:48]} 10. Ba4 {[%clk 0:02:54]}  b5 {[%clk 0:02:39]} 11. Bb3 {[%clk 0:02:54]}  Na5 {[%clk 0:02:38]} 12. Bc2 {[%clk 0:02:54]}  c5 {[%clk 0:02:38]} 13. Nbd2 {[%clk 0:02:53]}  O-O {[%clk 0:02:33]} 14. h4 {[%clk 0:02:50]}  Nxg4 {[%clk 0:02:32]} 15. h5 {[%clk 0:02:50]}  d5 {[%clk 0:02:20]} 16. exd5 {[%clk 0:02:34]}  Qxd5 {[%clk 0:02:17]} 17. hxg6 {[%clk 0:02:34]}  fxg6 {[%clk 0:02:17]} 18. Ne4 {[%clk 0:02:01]}  c4 {[%clk 0:02:12]} 19. Rd1 {[%clk 0:00:37]}  cxd3 {[%clk 0:02:12]} 20. Bxd3 {[%clk 0:00:34]}  Qxa2 {[%clk 0:02:11]} 21. Nfg5 {[%clk 0:00:27]}  Nxe3 {[%clk 0:02:07]} 22. Qxe3 {[%clk 0:00:26]}  h6 {[%clk 0:02:07]} 23. Nf3 {[%clk 0:00:25]}  Qxb2 {[%clk 0:01:59]} 24. Nxe5 {[%clk 0:00:23]}  Rae8 {[%clk 0:01:55]} 25. Nxg6 {[%clk 0:00:19]}  Bg5 {[%clk 0:01:51]} 26. Qe2 {[%clk 0:00:12]}  Qxe2+ {[%clk 0:01:33]} 27. Kxe2 {[%clk 0:00:12]}  Rf6 {[%clk 0:01:33]} 28. Nh4 {[%clk 0:00:09]}  Rf4 {[%clk 0:01:30]} 29. Nf3 {[%clk 0:00:07]}  Rexe4+ {[%clk 0:01:30]} 30. Bxe4 {[%clk 0:00:07]}  Rxe4+ {[%clk 0:01:31]} 31. Kd3 {[%clk 0:00:08]}  Rf4 {[%clk 0:01:25]} 32. Nxg5 {[%clk 0:00:08]}  hxg5 {[%clk 0:01:26]} 33. Rhg1 {[%clk 0:00:07]}  Rxf2 {[%clk 0:01:17]} 34. Rxg5 {[%clk 0:00:08]}  Nc4 {[%clk 0:01:11]} 35. Rdg1 {[%clk 0:00:07]}  Rd2+ {[%clk 0:01:03]} 36. Ke4 {[%clk 0:00:06]}  Rd7 {[%clk 0:01:04]} 37. Rd5 {[%clk 0:00:03]}  Nd2+ {[%clk 0:01:00]} 0-1


[Site "https://www.chess.com"]

[Event "Titled Tuesday Blitz April 25 Early 2023"]
[White "Tarasova, Viktoriya"]
[Black "Khamdamova, Afruza"]
[WhiteFideId "4175840"]
[BlackFideId "14210444"]
[WhiteElo "2182"]
[BlackElo "2210"]
[Result "0-1"]
[Round "10"]
[TimeControl "180+2"]
[Date "2023.04.25"]
[WhiteClock "0:00:07"]
[BlackClock "0:00:09"]

1. d4 {[%clk 0:02:58]}  Nf6 {[%clk 0:02:46]} 2. c4 {[%clk 0:02:58]}  e6 {[%clk 0:02:46]} 3. Nc3 {[%clk 0:02:58]}  d5 {[%clk 0:02:46]} 4. cxd5 {[%clk 0:02:57]}  exd5 {[%clk 0:02:46]} 5. Bg5 {[%clk 0:02:57]}  Be7 {[%clk 0:02:47]} 6. Qc2 {[%clk 0:02:57]}  O-O {[%clk 0:02:44]} 7. e3 {[%clk 0:02:57]}  Nbd7 {[%clk 0:02:42]} 8. Bd3 {[%clk 0:02:56]}  Re8 {[%clk 0:02:42]} 9. Nge2 {[%clk 0:02:55]}  c6 {[%clk 0:02:40]} 10. O-O {[%clk 0:02:55]}  h6 {[%clk 0:02:40]} 11. Bh4 {[%clk 0:02:54]}  Ne4 {[%clk 0:02:38]} 12. Bxe7 {[%clk 0:02:53]}  Qxe7 {[%clk 0:02:38]} 13. Bxe4 {[%clk 0:02:54]}  dxe4 {[%clk 0:02:39]} 14. Ng3 {[%clk 0:02:55]}  Nf6 {[%clk 0:02:39]} 15. Rae1 {[%clk 0:02:54]}  b6 {[%clk 0:02:27]} 16. f3 {[%clk 0:02:53]}  exf3 {[%clk 0:02:22]} 17. gxf3 {[%clk 0:02:50]}  Bh3 {[%clk 0:02:19]} 18. Rf2 {[%clk 0:02:50]}  c5 {[%clk 0:02:18]} 19. d5 {[%clk 0:02:42]}  Rad8 {[%clk 0:02:18]} 20. e4 {[%clk 0:02:41]}  Nxd5 {[%clk 0:02:14]} 21. Nxd5 {[%clk 0:02:28]}  Rxd5 {[%clk 0:02:14]} 22. Kh1 {[%clk 0:02:27]}  f5 {[%clk 0:01:50]} 23. Rg1 {[%clk 0:02:17]}  fxe4 {[%clk 0:01:48]} 24. Nxe4 {[%clk 0:02:00]}  Rd4 {[%clk 0:01:43]} 25. Rg3 {[%clk 0:01:37]}  Bf5 {[%clk 0:01:42]} 26. Rfg2 {[%clk 0:01:37]}  Bxe4 {[%clk 0:01:38]} 27. fxe4 {[%clk 0:01:24]}  Rxe4 {[%clk 0:01:36]} 28. Rxg7+ {[%clk 0:01:21]}  Qxg7 {[%clk 0:01:36]} 29. Rxg7+ {[%clk 0:01:22]}  Kxg7 {[%clk 0:01:36]} 30. Qg2+ {[%clk 0:01:22]}  Kh7 {[%clk 0:01:36]} 31. Qc2 {[%clk 0:01:13]}  Kg7 {[%clk 0:00:53]} 32. Qc3+ {[%clk 0:01:13]}  Kg6 {[%clk 0:00:45]} 33. Qg3+ {[%clk 0:01:10]}  Kh7 {[%clk 0:00:45]} 34. Qd3 {[%clk 0:01:08]}  c4 {[%clk 0:00:45]} 35. Qc2 {[%clk 0:01:06]}  Kg7 {[%clk 0:00:45]} 36. Qc3+ {[%clk 0:01:04]}  Kg6 {[%clk 0:00:44]} 37. Qg3+ {[%clk 0:01:02]}  Kh7 {[%clk 0:00:44]} 38. Qc7+ {[%clk 0:00:54]}  R8e7 {[%clk 0:00:44]} 39. Qc6 {[%clk 0:00:53]}  Rg4 {[%clk 0:00:37]} 40. h3 {[%clk 0:00:44]}  Rge4 {[%clk 0:00:35]} 41. Kg2 {[%clk 0:00:39]}  R7e6 {[%clk 0:00:35]} 42. Qc7+ {[%clk 0:00:38]}  Re7 {[%clk 0:00:34]} 43. Qc6 {[%clk 0:00:38]}  Kg7 {[%clk 0:00:34]} 44. Qc8 {[%clk 0:00:31]}  Re2+ {[%clk 0:00:31]} 45. Kg3 {[%clk 0:00:28]}  b5 {[%clk 0:00:30]} 46. Qc5 {[%clk 0:00:25]}  R2e5 {[%clk 0:00:30]} 47. Qd4 {[%clk 0:00:24]}  Kf7 {[%clk 0:00:28]} 48. Qf4+ {[%clk 0:00:24]}  Kg6 {[%clk 0:00:28]} 49. Qd4 {[%clk 0:00:22]}  Re3+ {[%clk 0:00:27]} 50. Kg2 {[%clk 0:00:22]}  Re2+ {[%clk 0:00:27]} 51. Kg3 {[%clk 0:00:22]}  R2e5 {[%clk 0:00:26]} 52. Qd6+ {[%clk 0:00:21]}  R7e6 {[%clk 0:00:26]} 53. Qd8 {[%clk 0:00:21]}  Kg7 {[%clk 0:00:23]} 54. Qd7+ {[%clk 0:00:20]}  Re7 {[%clk 0:00:24]} 55. Qd8 {[%clk 0:00:21]}  a6 {[%clk 0:00:22]} 56. h4 {[%clk 0:00:14]}  Kf7 {[%clk 0:00:21]} 57. Kg4 {[%clk 0:00:12]}  h5+ {[%clk 0:00:21]} 58. Kg3 {[%clk 0:00:13]}  Re4 {[%clk 0:00:20]} 59. Qd1 {[%clk 0:00:11]}  Rg4+ {[%clk 0:00:20]} 60. Kf3 {[%clk 0:00:11]}  Kg6 {[%clk 0:00:08]} 61. Qd6+ {[%clk 0:00:11]}  Kf7 {[%clk 0:00:08]} 62. Qd5+ {[%clk 0:00:11]}  Kf8 {[%clk 0:00:08]} 63. Qxh5 {[%clk 0:00:09]}  Rgg7 {[%clk 0:00:08]} 64. Qh8+ {[%clk 0:00:09]}  Kf7 {[%clk 0:00:08]} 65. Qh5+ {[%clk 0:00:08]}  Ke6 {[%clk 0:00:08]} 66. Qc5 {[%clk 0:00:07]}  Ref7+ {[%clk 0:00:07]} 67. Ke2 {[%clk 0:00:07]}  Rc7 {[%clk 0:00:07]} 68. Qe3+ {[%clk 0:00:05]}  Kd5 {[%clk 0:00:07]} 69. Qg3 {[%clk 0:00:06]}  Rxg3 {[%clk 0:00:07]} 70. Kf2 {[%clk 0:00:06]}  Rh3 {[%clk 0:00:07]} 71. Kg2 {[%clk 0:00:06]}  Rxh4 {[%clk 0:00:08]} 72. Kg3 {[%clk 0:00:07]}  Rch7 {[%clk 0:00:08]} 73. Kf3 {[%clk 0:00:07]}  b4 {[%clk 0:00:09]} 0-1


[Site "https://www.chess.com"]

[Event "Titled Tuesday Blitz April 25 Early 2023"]
[White "Zavortink, Matt"]
[Black "Buscar, Michael"]
[WhiteFideId "2034263"]
[BlackFideId "2603616"]
[WhiteElo "2468"]
[BlackElo "2010"]
[Result "1-0"]
[Round "10"]
[TimeControl "180+2"]
[Date "2023.04.25"]
[WhiteClock "0:00:05"]
[BlackClock "0:00:19"]

1. c4 {[%clk 0:03:00]}  Nf6 {[%clk 0:02:58]} 2. Nc3 {[%clk 0:03:01]}  e6 {[%clk 0:02:58]} 3. e4 {[%clk 0:03:00]}  d6 {[%clk 0:02:58]} 4. d4 {[%clk 0:03:00]}  b6 {[%clk 0:02:58]} 5. Bd3 {[%clk 0:02:56]}  Bb7 {[%clk 0:02:58]} 6. Nf3 {[%clk 0:02:56]}  Be7 {[%clk 0:02:59]} 7. O-O {[%clk 0:02:55]}  c5 {[%clk 0:02:57]} 8. d5 {[%clk 0:02:55]}  e5 {[%clk 0:02:57]} 9. a3 {[%clk 0:02:36]}  a5 {[%clk 0:02:40]} 10. Qe2 {[%clk 0:02:32]}  Nbd7 {[%clk 0:02:35]} 11. Nh4 {[%clk 0:02:31]}  Nf8 {[%clk 0:02:34]} 12. Nf5 {[%clk 0:02:29]}  Rg8 {[%clk 0:02:29]} 13. f4 {[%clk 0:02:21]}  Ng6 {[%clk 0:02:24]} 14. fxe5 {[%clk 0:02:12]}  Nxe5 {[%clk 0:02:22]} 15. Bf4 {[%clk 0:02:08]}  Nfd7 {[%clk 0:02:21]} 16. Rad1 {[%clk 0:01:59]}  g6 {[%clk 0:02:04]} 17. Nh6 {[%clk 0:01:54]}  Rg7 {[%clk 0:02:03]} 18. Ng4 {[%clk 0:01:38]}  Bg5 {[%clk 0:01:42]} 19. Bxe5 {[%clk 0:01:25]}  Nxe5 {[%clk 0:01:40]} 20. Nxe5 {[%clk 0:01:23]}  dxe5 {[%clk 0:01:41]} 21. Bc2 {[%clk 0:01:10]}  Kf8 {[%clk 0:01:38]} 22. Rf2 {[%clk 0:01:02]}  Kg8 {[%clk 0:01:37]} 23. Rdf1 {[%clk 0:01:02]}  Ba6 {[%clk 0:01:33]} 24. Ba4 {[%clk 0:01:00]}  Bf4 {[%clk 0:01:23]} 25. g3 {[%clk 0:00:59]}  Bg5 {[%clk 0:01:17]} 26. Bb5 {[%clk 0:00:55]}  Bc8 {[%clk 0:01:12]} 27. Kg2 {[%clk 0:00:52]}  h5 {[%clk 0:01:06]} 28. h3 {[%clk 0:00:51]}  Ra7 {[%clk 0:00:54]} 29. Bc6 {[%clk 0:00:35]}  h4 {[%clk 0:00:48]} 30. g4 {[%clk 0:00:35]}  Bf4 {[%clk 0:00:49]} 31. Rf3 {[%clk 0:00:34]}  Qg5 {[%clk 0:00:48]} 32. Kh1 {[%clk 0:00:28]}  f5 {[%clk 0:00:44]} 33. exf5 {[%clk 0:00:10]}  gxf5 {[%clk 0:00:42]} 34. Rxf4 {[%clk 0:00:09]}  exf4 {[%clk 0:00:40]} 35. Qe8+ {[%clk 0:00:09]}  Kh7 {[%clk 0:00:38]} 36. Qxc8 {[%clk 0:00:10]}  fxg4 {[%clk 0:00:37]} 37. Qxg4 {[%clk 0:00:10]}  Qxg4 {[%clk 0:00:37]} 38. hxg4 {[%clk 0:00:11]}  Rxg4 {[%clk 0:00:37]} 39. d6 {[%clk 0:00:09]}  Rag7 {[%clk 0:00:33]} 40. d7 {[%clk 0:00:08]}  Rg3 {[%clk 0:00:33]} 41. Rf2 {[%clk 0:00:08]}  Rd3 {[%clk 0:00:23]} 42. Be4+ {[%clk 0:00:07]}  Kh6 {[%clk 0:00:21]} 43. Bxd3 {[%clk 0:00:07]}  Rxd7 {[%clk 0:00:22]} 44. Nd5 {[%clk 0:00:08]}  Rd6 {[%clk 0:00:19]} 45. Rxf4 {[%clk 0:00:08]}  Kg5 {[%clk 0:00:19]} 46. Rf5+ {[%clk 0:00:07]}  Kg4 {[%clk 0:00:19]} 47. Kg2 {[%clk 0:00:06]}  Re6 {[%clk 0:00:19]} 48. Rf4+ {[%clk 0:00:05]}  Kg5 {[%clk 0:00:19]} 49. Rf5+ {[%clk 0:00:06]}  Kg4 {[%clk 0:00:19]} 50. Nf6+ {[%clk 0:00:05]} 1-0


[Site "https://www.chess.com"]

[Event "Titled Tuesday Blitz April 25 Early 2023"]
[White "Smith, Garrett L"]
[Black "Yurasova, Daria"]
[WhiteFideId "2024829"]
[BlackFideId "34146919"]
[WhiteElo "2269"]
[BlackElo "2134"]
[Result "0-1"]
[Round "10"]
[TimeControl "180+2"]
[Date "2023.04.25"]
[WhiteClock "0:00:41"]
[BlackClock "0:00:27"]

1. e4 {[%clk 0:03:00]}  e5 {[%clk 0:02:58]} 2. Nf3 {[%clk 0:03:00]}  Nc6 {[%clk 0:02:58]} 3. Bc4 {[%clk 0:03:01]}  Bc5 {[%clk 0:02:57]} 4. b4 {[%clk 0:03:00]}  Bxb4 {[%clk 0:02:57]} 5. c3 {[%clk 0:03:01]}  Be7 {[%clk 0:02:54]} 6. d4 {[%clk 0:02:52]}  Na5 {[%clk 0:02:53]} 7. Be2 {[%clk 0:02:51]}  d6 {[%clk 0:02:53]} 8. dxe5 {[%clk 0:02:45]}  dxe5 {[%clk 0:02:53]} 9. Qa4+ {[%clk 0:02:39]}  c6 {[%clk 0:02:53]} 10. Nxe5 {[%clk 0:02:38]}  Nf6 {[%clk 0:02:53]} 11. O-O {[%clk 0:02:37]}  O-O {[%clk 0:02:52]} 12. Bf4 {[%clk 0:02:36]}  Be6 {[%clk 0:02:44]} 13. Rd1 {[%clk 0:02:34]}  Qb6 {[%clk 0:02:43]} 14. Nd2 {[%clk 0:02:30]}  Bd6 {[%clk 0:02:11]} 15. Ndc4 {[%clk 0:02:15]}  Nxc4 {[%clk 0:02:00]} 16. Nxc4 {[%clk 0:02:15]}  Bxc4 {[%clk 0:01:59]} 17. Rdb1 {[%clk 0:01:04]}  Bb5 {[%clk 0:00:31]} 18. Bxd6 {[%clk 0:00:47]}  Bxa4 {[%clk 0:00:30]} 19. Rxb6 {[%clk 0:00:45]}  axb6 {[%clk 0:00:30]} 20. Bxf8 {[%clk 0:00:43]}  Rxf8 {[%clk 0:00:29]} 21. f3 {[%clk 0:00:41]}  Nd7 {[%clk 0:00:27]} 0-1


[Site "https://www.chess.com"]

[Event "Titled Tuesday Blitz April 25 Early 2023"]
[White "Heinemann, Josefine"]
[Black "Tsyhanchuk, Stanislav"]
[WhiteFideId "12900460"]
[BlackFideId "13505130"]
[WhiteElo "2342"]
[BlackElo "2173"]
[Result "1-0"]
[Round "10"]
[TimeControl "180+2"]
[Date "2023.04.25"]
[WhiteClock "0:00:53"]
[BlackClock "0:00:03"]

1. d4 {[%clk 0:03:00]}  Nf6 {[%clk 0:02:59]} 2. c4 {[%clk 0:02:59]}  e6 {[%clk 0:02:58]} 3. Nf3 {[%clk 0:02:58]}  b6 {[%clk 0:02:58]} 4. g3 {[%clk 0:02:55]}  Bb7 {[%clk 0:02:58]} 5. Bg2 {[%clk 0:02:55]}  Bb4+ {[%clk 0:02:54]} 6. Bd2 {[%clk 0:02:51]}  Bxd2+ {[%clk 0:02:53]} 7. Qxd2 {[%clk 0:02:51]}  Ne4 {[%clk 0:02:45]} 8. Qc2 {[%clk 0:02:50]}  d6 {[%clk 0:02:44]} 9. O-O {[%clk 0:02:49]}  Nd7 {[%clk 0:02:44]} 10. Re1 {[%clk 0:02:34]}  f5 {[%clk 0:02:43]} 11. Nc3 {[%clk 0:02:33]}  Ndf6 {[%clk 0:02:43]} 12. d5 {[%clk 0:02:22]}  exd5 {[%clk 0:02:40]} 13. Nd4 {[%clk 0:02:22]}  dxc4 {[%clk 0:02:35]} 14. Nxf5 {[%clk 0:02:22]}  d5 {[%clk 0:02:21]} 15. Nxg7+ {[%clk 0:02:20]}  Kf7 {[%clk 0:02:20]} 16. Nf5 {[%clk 0:02:21]}  Qd7 {[%clk 0:01:53]} 17. Ne3 {[%clk 0:02:15]}  Rae8 {[%clk 0:01:28]} 18. Rad1 {[%clk 0:02:14]}  Nxf2 {[%clk 0:01:02]} 19. Kxf2 {[%clk 0:02:04]}  Rxe3 {[%clk 0:01:02]} 20. Kxe3 {[%clk 0:02:01]}  d4+ {[%clk 0:00:35]} 21. Kf2 {[%clk 0:01:43]}  Ng4+ {[%clk 0:00:29]} 22. Kg1 {[%clk 0:01:40]}  Bxg2 {[%clk 0:00:29]} 23. e4 {[%clk 0:01:22]}  Bh3 {[%clk 0:00:20]} 24. Qd2 {[%clk 0:01:12]}  Rf8 {[%clk 0:00:17]} 25. Qxd4 {[%clk 0:01:09]}  Qe7 {[%clk 0:00:10]} 26. Ne2 {[%clk 0:01:06]}  Kg8 {[%clk 0:00:08]} 27. Nf4 {[%clk 0:01:05]}  h5 {[%clk 0:00:03]} 28. Nxh3 {[%clk 0:01:01]}  Ne5 {[%clk 0:00:03]} 29. Rf1 {[%clk 0:00:53]}  Rxf1+ {[%clk 0:00:02]} 30. Rxf1 {[%clk 0:00:54]}  Kg7 {[%clk 0:00:02]} 31. Rf5 {[%clk 0:00:53]}  Kg6 {[%clk 0:00:03]} 32. Qxe5 {[%clk 0:00:53]} 1-0


[Site "https://www.chess.com"]

[Event "Titled Tuesday Blitz April 25 Early 2023"]
[White "mjelcic"]
[Black "egorchess95"]
[WhiteElo "2237"]
[BlackElo "2522"]
[Result "0-1"]
[Round "10"]
[TimeControl "180+2"]
[Date "2023.04.25"]
[WhiteClock "0:02:31"]
[BlackClock "0:02:13"]

1. c4 {[%clk 0:03:00]}  Nf6 {[%clk 0:02:54]} 2. Nc3 {[%clk 0:03:00]}  e6 {[%clk 0:02:54]} 3. e4 {[%clk 0:02:59]}  d5 {[%clk 0:02:41]} 4. exd5 {[%clk 0:03:00]}  exd5 {[%clk 0:02:42]} 5. cxd5 {[%clk 0:03:01]}  Nxd5 {[%clk 0:02:43]} 6. d4 {[%clk 0:03:01]}  Bb4 {[%clk 0:02:28]} 7. Qc2 {[%clk 0:02:44]}  Nc6 {[%clk 0:02:23]} 8. Qe4+ {[%clk 0:02:33]}  Be6 {[%clk 0:02:21]} 9. Bd2 {[%clk 0:02:33]}  O-O {[%clk 0:02:19]} 10. Nf3 {[%clk 0:02:31]}  Re8 {[%clk 0:02:19]} 11. Bd3 {[%clk 0:02:31]}  Bf5 {[%clk 0:02:13]} 0-1


[Site "https://www.chess.com"]

[Event "Titled Tuesday Blitz April 25 Early 2023"]
[White "koncheto"]
[Black "Prudnykova, Olga"]
[BlackFideId "14121093"]
[WhiteElo "2493"]
[BlackElo "2113"]
[Result "0-1"]
[Round "10"]
[TimeControl "180+2"]
[Date "2023.04.25"]
[WhiteClock "0:00:10"]
[BlackClock "0:00:32"]

1. e4 {[%clk 0:03:00]}  c5 {[%clk 0:02:59]} 2. Nf3 {[%clk 0:03:00]}  Nf6 {[%clk 0:02:59]} 3. e5 {[%clk 0:02:53]}  Nd5 {[%clk 0:02:59]} 4. d4 {[%clk 0:02:52]}  cxd4 {[%clk 0:02:59]} 5. c3 {[%clk 0:02:53]}  e6 {[%clk 0:02:56]} 6. cxd4 {[%clk 0:02:52]}  b6 {[%clk 0:02:56]} 7. Nc3 {[%clk 0:02:51]}  Nxc3 {[%clk 0:02:55]} 8. bxc3 {[%clk 0:02:52]}  Qc7 {[%clk 0:02:54]} 9. Bd2 {[%clk 0:02:51]}  d6 {[%clk 0:02:49]} 10. Bd3 {[%clk 0:02:50]}  Bb7 {[%clk 0:02:48]} 11. O-O {[%clk 0:02:48]}  Nd7 {[%clk 0:02:48]} 12. exd6 {[%clk 0:02:42]}  Bxd6 {[%clk 0:02:48]} 13. h3 {[%clk 0:02:43]}  O-O {[%clk 0:02:44]} 14. Qe2 {[%clk 0:02:40]}  Rad8 {[%clk 0:02:40]} 15. Ng5 {[%clk 0:02:35]}  Nf6 {[%clk 0:02:37]} 16. Ne4 {[%clk 0:02:27]}  Nxe4 {[%clk 0:02:37]} 17. Bxe4 {[%clk 0:02:27]}  Bxe4 {[%clk 0:02:36]} 18. Qxe4 {[%clk 0:02:28]}  Rfe8 {[%clk 0:02:36]} 19. Rfe1 {[%clk 0:02:12]}  Be7 {[%clk 0:02:30]} 20. a4 {[%clk 0:02:07]}  Bf6 {[%clk 0:02:29]} 21. h4 {[%clk 0:01:53]}  h6 {[%clk 0:02:29]} 22. h5 {[%clk 0:01:51]}  Qc4 {[%clk 0:02:04]} 23. a5 {[%clk 0:01:47]}  b5 {[%clk 0:02:01]} 24. a6 {[%clk 0:01:44]}  Rd5 {[%clk 0:02:00]} 25. Qg4 {[%clk 0:01:38]}  Kh7 {[%clk 0:01:53]} 26. Rab1 {[%clk 0:01:36]}  Red8 {[%clk 0:01:49]} 27. Rb4 {[%clk 0:01:34]}  Qc6 {[%clk 0:01:48]} 28. Qe4+ {[%clk 0:01:28]}  Kg8 {[%clk 0:01:46]} 29. Reb1 {[%clk 0:01:29]}  Qxa6 {[%clk 0:01:44]} 30. Be3 {[%clk 0:01:19]}  Qa5 {[%clk 0:01:30]} 31. Qg4 {[%clk 0:01:15]}  Kh7 {[%clk 0:01:28]} 32. Qe4+ {[%clk 0:01:15]}  Kg8 {[%clk 0:01:26]} 33. Qg4 {[%clk 0:01:13]}  Kf8 {[%clk 0:01:26]} 34. Qe4 {[%clk 0:01:12]}  a6 {[%clk 0:01:22]} 35. g4 {[%clk 0:01:08]}  Qa3 {[%clk 0:01:18]} 36. R1b3 {[%clk 0:01:03]}  Qa5 {[%clk 0:01:14]} 37. Rb2 {[%clk 0:01:01]}  Qc7 {[%clk 0:01:11]} 38. R4b3 {[%clk 0:01:00]}  Rc8 {[%clk 0:01:03]} 39. f4 {[%clk 0:00:57]}  Qc6 {[%clk 0:01:00]} 40. Qh7 {[%clk 0:00:43]}  Ke7 {[%clk 0:00:57]} 41. Rg2 {[%clk 0:00:34]}  Qc4 {[%clk 0:00:53]} 42. Ra3 {[%clk 0:00:29]}  b4 {[%clk 0:00:50]} 43. cxb4 {[%clk 0:00:23]}  Bxd4 {[%clk 0:00:50]} 44. Bxd4 {[%clk 0:00:15]}  Qc1+ {[%clk 0:00:43]} 45. Kh2 {[%clk 0:00:15]}  Qxf4+ {[%clk 0:00:41]} 46. Rag3 {[%clk 0:00:13]}  Qxd4 {[%clk 0:00:37]} 47. Qb1 {[%clk 0:00:12]}  Rc4 {[%clk 0:00:35]} 48. Qa2 {[%clk 0:00:11]}  Rd6 {[%clk 0:00:33]} 49. g5 {[%clk 0:00:10]}  hxg5 {[%clk 0:00:32]} 50. Rxg5 {[%clk 0:00:10]}  Qh4+ {[%clk 0:00:32]} 51. Kg1 {[%clk 0:00:10]}  Rc1# {[%clk 0:00:32]} 0-1


[Site "https://www.chess.com"]

[Event "Titled Tuesday Blitz April 25 Early 2023"]
[White "Womacka, Mathias"]
[Black "Inepton_Fermion"]
[WhiteFideId "4611390"]
[WhiteElo "2377"]
[BlackElo "2342"]
[Result "0-1"]
[Round "10"]
[TimeControl "180+2"]
[Date "2023.04.25"]
[WhiteClock "0:00:01"]
[BlackClock "0:00:05"]

1. e4 {[%clk 0:03:00]}  g6 {[%clk 0:02:59]} 2. d4 {[%clk 0:02:59]}  Bg7 {[%clk 0:02:59]} 3. Nc3 {[%clk 0:02:59]}  d5 {[%clk 0:03:00]} 4. exd5 {[%clk 0:02:55]}  Nf6 {[%clk 0:02:59]} 5. Bc4 {[%clk 0:02:48]}  c6 {[%clk 0:02:59]} 6. dxc6 {[%clk 0:02:47]}  Nxc6 {[%clk 0:02:59]} 7. Nf3 {[%clk 0:02:38]}  Bg4 {[%clk 0:02:59]} 8. Be3 {[%clk 0:02:38]}  Bxf3 {[%clk 0:02:37]} 9. Qxf3 {[%clk 0:02:28]}  Nxd4 {[%clk 0:02:36]} 10. Bxd4 {[%clk 0:02:28]}  Qxd4 {[%clk 0:02:36]} 11. Bb5+ {[%clk 0:02:29]}  Kf8 {[%clk 0:02:25]} 12. O-O {[%clk 0:02:24]}  Qb6 {[%clk 0:02:14]} 13. Rad1 {[%clk 0:02:16]}  h5 {[%clk 0:02:14]} 14. Rfe1 {[%clk 0:01:54]}  Rc8 {[%clk 0:02:13]} 15. Ba4 {[%clk 0:01:46]}  Qxb2 {[%clk 0:02:04]} 16. Nd5 {[%clk 0:01:36]}  Nxd5 {[%clk 0:01:55]} 17. Rxd5 {[%clk 0:01:37]}  Bf6 {[%clk 0:01:52]} 18. Bb3 {[%clk 0:01:15]}  Kg7 {[%clk 0:01:50]} 19. Rd7 {[%clk 0:01:15]}  Rhd8 {[%clk 0:00:52]} 20. Rxb7 {[%clk 0:01:06]}  Qd4 {[%clk 0:00:37]} 21. g3 {[%clk 0:01:01]}  Rc3 {[%clk 0:00:35]} 22. Qe2 {[%clk 0:00:53]}  a5 {[%clk 0:00:29]} 23. a4 {[%clk 0:00:51]}  h4 {[%clk 0:00:27]} 24. Kg2 {[%clk 0:00:35]}  Qc5 {[%clk 0:00:19]} 25. Qe4 {[%clk 0:00:31]}  Rd4 {[%clk 0:00:17]} 26. Rb5 {[%clk 0:00:17]}  Rxe4 {[%clk 0:00:16]} 27. Rxe4 {[%clk 0:00:16]}  Qd6 {[%clk 0:00:13]} 28. Rxa5 {[%clk 0:00:14]}  Qd2 {[%clk 0:00:12]} 29. Rd5 {[%clk 0:00:12]}  Qc1 {[%clk 0:00:09]} 30. a5 {[%clk 0:00:06]}  h3+ {[%clk 0:00:09]} 31. Kxh3 {[%clk 0:00:06]}  Qf1+ {[%clk 0:00:09]} 32. Kg4 {[%clk 0:00:06]}  Qxf2 {[%clk 0:00:08]} 33. a6 {[%clk 0:00:05]}  Qf3+ {[%clk 0:00:08]} 34. Kh3 {[%clk 0:00:04]}  Qxe4 {[%clk 0:00:07]} 35. a7 {[%clk 0:00:05]}  Rc8 {[%clk 0:00:07]} 36. Ra5 {[%clk 0:00:03]}  e6 {[%clk 0:00:05]} 37. Ba4 {[%clk 0:00:02]}  Qb7 {[%clk 0:00:05]} 38. Bb5 {[%clk 0:00:01]}  Ra8 {[%clk 0:00:05]} 0-1


[Site "https://www.chess.com"]

[Event "Titled Tuesday Blitz April 25 Early 2023"]
[White "Shimelkov, Vasiliy"]
[Black "Mihajlovskij"]
[WhiteFideId "13701630"]
[WhiteElo "2073"]
[BlackElo "2328"]
[Result "1-0"]
[Round "10"]
[TimeControl "180+2"]
[Date "2023.04.25"]
[WhiteClock "0:01:02"]
[BlackClock "0:00:10"]

1. d4 {[%clk 0:03:00]}  Nf6 {[%clk 0:02:58]} 2. Nf3 {[%clk 0:02:59]}  g6 {[%clk 0:02:55]} 3. c4 {[%clk 0:02:59]}  Bg7 {[%clk 0:02:53]} 4. Nc3 {[%clk 0:02:58]}  O-O {[%clk 0:02:53]} 5. e4 {[%clk 0:02:56]}  d6 {[%clk 0:02:53]} 6. Be2 {[%clk 0:02:55]}  c5 {[%clk 0:02:53]} 7. d5 {[%clk 0:02:53]}  e6 {[%clk 0:02:49]} 8. O-O {[%clk 0:02:51]}  exd5 {[%clk 0:02:49]} 9. exd5 {[%clk 0:02:49]}  Re8 {[%clk 0:02:48]} 10. Bf4 {[%clk 0:02:45]}  Nh5 {[%clk 0:02:43]} 11. Bg5 {[%clk 0:02:43]}  Qd7 {[%clk 0:02:41]} 12. Bd3 {[%clk 0:02:37]}  Na6 {[%clk 0:02:34]} 13. a3 {[%clk 0:02:35]}  Nc7 {[%clk 0:02:30]} 14. h3 {[%clk 0:02:28]}  h6 {[%clk 0:02:29]} 15. Be3 {[%clk 0:02:25]}  Nf6 {[%clk 0:02:21]} 16. Qd2 {[%clk 0:02:24]}  Kh7 {[%clk 0:02:15]} 17. Nh4 {[%clk 0:02:18]}  b5 {[%clk 0:02:00]} 18. b3 {[%clk 0:02:16]}  b4 {[%clk 0:01:51]} 19. axb4 {[%clk 0:02:10]}  cxb4 {[%clk 0:01:51]} 20. Ne2 {[%clk 0:02:08]}  Ne4 {[%clk 0:01:52]} 21. Bxe4 {[%clk 0:01:59]}  Rxe4 {[%clk 0:01:44]} 22. Nf3 {[%clk 0:01:51]}  a5 {[%clk 0:01:37]} 23. Ned4 {[%clk 0:01:44]}  Qe8 {[%clk 0:01:28]} 24. Ra2 {[%clk 0:01:41]}  a4 {[%clk 0:01:15]} 25. Qxb4 {[%clk 0:01:38]}  Rxe3 {[%clk 0:01:11]} 26. fxe3 {[%clk 0:01:36]}  Qxe3+ {[%clk 0:01:11]} 27. Kh1 {[%clk 0:01:32]}  f5 {[%clk 0:00:56]} 28. Re2 {[%clk 0:01:20]}  Qf4 {[%clk 0:00:49]} 29. Re7 {[%clk 0:01:18]}  axb3 {[%clk 0:00:41]} 30. Rxc7 {[%clk 0:01:16]}  Kh8 {[%clk 0:00:25]} 31. Qxb3 {[%clk 0:01:08]}  Be5 {[%clk 0:00:16]} 32. Qb5 {[%clk 0:01:04]}  Ba6 {[%clk 0:00:10]} 33. Qd7 {[%clk 0:01:02]} 1-0


[Site "https://www.chess.com"]